fUSD/lending_fUSD_20250211
["ID","MTS","AMOUNT","RATE_DAILY","PERIOD"]
[352678510,1739232640962,-151.62968052,0.00010958,2]
[352678511,1739232640975,-868.80031948,0.00010958,2]
[352678512,1739232640985,-550.07,0.00010958,2]
[352678513,1739232640995,-54.12244339,0.00010958,2]
[352678514,1739232641007,-536.79636999,0.00010958,2]
[352678515,1739232641020,-1213.95118662,0.00010958,2]
[352678516,1739232641030,-500.0,0.00010958,2]
[352678517,1739232641040,-500.0,0.00010958,2]
[352678518,1739232641051,-500.0,0.00010958,2]
[352678519,1739232641061,-1018.95,0.00010958,2]
[352678520,1739232641070,-500.0,0.00010958,2]
[352678521,1739232641080,-500.0,0.00010958,2]
[352678522,1739232641089,-1184.4,0.00010958,2]
[352678523,1739232641099,-1124.3,0.00010958,2]
[352678524,1739232641108,-500.0,0.00010958,2]
[352678525,1739232641117,-500.0,0.00010958,2]
[352678526,1739232641127,-500.0,0.00010958,2]
[352678527,1739232641136,-357.47130238,0.00010958,2]
[352678528,1739232641146,-538.75,0.00010958,2]
[352678529,1739232641155,-500.0,0.00010958,2]
[352678530,1739232641165,-811.70606972,0.00010958,2]
[352678531,1739232641179,-180.20393028,0.00010958,2]
[352678532,1739232641188,-500.0,0.00010958,2]
[352678533,1739232641197,-293.52106972,0.00010958,2]
[352678534,1739232641209,-206.47893028,0.00010958,2]
[352678535,1739232641219,-336.44106972,0.00010958,2]
[352678536,1739232641231,-163.55893028,0.00010958,2]
[352678537,1739232641242,-316.37106972,0.00010958,2]
[352678538,1739232641261,-183.62893028,0.00010958,2]
[352678539,1739232641270,-2202.03,0.00010958,2]
[352678540,1739232641280,-500.0,0.00010958,2]
[352678541,1739232641289,-1430.79,0.00010958,2]
[352678542,1739232641299,-870.39,0.00010958,2]
[352678543,1739232641308,-583.91,0.00010958,2]
[352678544,1739232641318,-1751.68,0.00010958,2]
[352678545,1739232641328,-500.0,0.00010958,2]
[352678546,1739232641338,-920.03,0.00010958,2]
[352678547,1739232641348,-1452.63,0.00010958,2]
[352678548,1739232641358,-1515.49,0.00010958,2]
[352678549,1739232641368,-500.0,0.00010958,2]
[352678550,1739232641379,-500.0,0.00010958,2]
[352678551,1739232641390,-4000.0,0.00010958,2]
[352678552,1739232641399,-630.73,0.00010958,2]
[352678553,1739232641409,-1283.8,0.00010958,2]
[352678554,1739232641419,-500.0,0.00010958,2]
[352678555,1739232641429,-670.21,0.00010958,2]
[352678556,1739232641438,-1351.25,0.00010958,2]
[352678557,1739232641448,-500.0,0.00010958,2]
[352678558,1739232641458,-1107.03,0.00010958,2]
[352678559,1739232641468,-767.08,0.00010958,2]
[352678560,1739232641479,-754.29,0.00010958,2]
[352678561,1739232641490,-1211.47,0.00010958,2]
[352678562,1739232641501,-1444.65,0.00010958,2]
[352678563,1739232641511,-6511.79,0.00010958,2]
[352678564,1739232641521,-500.0,0.00010958,2]
[352678565,1739232641530,-1459.45,0.00010958,2]
[352678566,1739232641540,-500.0,0.00010958,2]
[352678567,1739232641550,-273.35223415,0.00010958,2]
[352678568,1739232641560,-2940.74,0.00010958,2]
[352678569,1739232641570,-500.0,0.00010958,2]
[352678570,1739232641579,-739.4,0.00010958,2]
[352678571,1739232641589,-500.0,0.00010958,2]
[352678572,1739232641599,-1054.68,0.00010958,2]
[352678573,1739232641609,-147.54005713,0.00010958,2]
[352678574,1739232641940,-836.71994287,0.00010958,2]
[352678575,1739232641951,-500.0,0.00010958,2]
[352678576,1739232641961,-1230.54,0.00010958,2]
[352678577,1739232641971,-520.4,0.00010958,2]
[352678578,1739232641981,-500.0,0.00010958,2]
[352678579,1739232641992,-500.0,0.00010958,2]
[352678580,1739232642002,-500.0,0.00010958,2]
[352678581,1739232642012,-500.0,0.00010958,2]
[352678582,1739232642021,-500.0,0.00010958,2]
[352678583,1739232642031,-500.0,0.00010958,2]
[352678584,1739232642042,-841.15,0.00010958,2]
[352678585,1739232642052,-500.0,0.00010958,2]
[352678586,1739232642062,-1002.34585913,0.00010958,2]
[352678587,1739232642075,-365.39414087,0.00010958,2]
[352678588,1739232642085,-764.3986979,0.00010958,2]
[352678589,1739232642096,-1192.4879524,0.00010958,2]
[352678590,1739232642115,-944.3233497,0.00010958,2]
[352678591,1739232642124,-500.0,0.00010958,2]
[352678592,1739232642134,-500.0,0.00010958,2]
[352678593,1739232642144,-500.0,0.00010958,2]
[352678594,1739232642154,-1258.19,0.00010958,2]
[352678595,1739232642164,-500.0,0.00010958,2]
[352678596,1739232642174,-2495.2,0.00010958,2]
[352678597,1739232642184,-500.0,0.00010958,2]
[352678598,1739232642193,-661.22,0.00010958,2]
[352678599,1739232642203,-500.0,0.00010958,2]
[352678600,1739232642214,-500.0,0.00010958,2]
[352678601,1739232642224,-2307.46,0.00010958,2]
[352678602,1739232642243,-1808.27,0.00010958,2]
[352678603,1739232642254,-3353.5,0.00010958,2]
[352678604,1739232642265,-500.0,0.00010958,2]
[352678605,1739232642275,-500.0,0.00010958,2]
[352678606,1739232642285,-500.0,0.00010958,2]
[352678607,1739232642295,-500.0,0.00010958,2]
[352678608,1739232642305,-500.0,0.00010958,2]
[352678609,1739232642315,-518.42,0.00010958,2]
[352678610,1739232642325,-794.9,0.00010958,2]
[352678611,1739232642335,-500.0,0.00010958,2]
[352678612,1739232642345,-1392.68,0.00010958,2]
[352678613,1739232642355,-1132.62,0.00010958,2]
[352678614,1739232642365,-500.0,0.00010958,2]
[352678615,1739232642375,-4578.25,0.00010958,2]
[352678616,1739232642384,-500.0,0.00010958,2]
[352678617,1739232642393,-2026.36,0.00010958,2]
[352678618,1739232642403,-500.0,0.00010958,2]
[352678619,1739232642412,-1064.05,0.00010958,2]
[352678620,1739232642422,-969.26,0.00010958,2]
[352678621,1739232642431,-776.82,0.00010958,2]
[352678622,1739232642441,-1470.22,0.00010958,2]
[352678623,1739232642450,-1094.32,0.00010958,2]
[352678624,1739232642460,-2014.0,0.00010958,2]
[352678625,1739232642470,-1079.41,0.00010958,2]
[352678626,1739232642479,-1805.44,0.00010958,2]
[352678627,1739232642488,-500.0,0.00010958,2]
[352678628,1739232642499,-500.0,0.00010958,2]
[352678629,1739232642509,-500.0,0.00010958,2]
[352678630,1739232642519,-749.52,0.00010958,2]
[352678631,1739232642529,-500.0,0.00010958,2]
[352678632,1739232642538,-500.0,0.00010958,2]
[352678633,1739232642549,-500.0,0.00010958,2]
[352678634,1739232642560,-500.0,0.00010958,2]
[352678635,1739232642573,-500.0,0.00010958,2]
[352678636,1739232642582,-1233.24,0.00010958,2]
[352678637,1739232642592,-1537.69,0.00010958,2]
[352678638,1739232642603,-1087.7,0.00010958,2]
[352678639,1739232642613,-1583.07,0.00010958,2]
[352678640,1739232642621,-500.0,0.00010958,2]
[352678641,1739232642632,-759.89,0.00010958,2]
[352678642,1739232642641,-500.0,0.00010958,2]
[352678643,1739232642650,-2794.77,0.00010958,2]
[352678644,1739232642660,-842.22,0.00010958,2]
[352678645,1739232642669,-1324.69,0.00010958,2]
[352678646,1739232642679,-500.0,0.00010958,2]
[352678647,1739232642688,-500.0,0.00010958,2]
[352678648,1739232642697,-500.0,0.00010958,2]
[352678649,1739232642707,-1672.89,0.00010958,2]
[352678650,1739232642717,-295.65674328,0.00010958,2]
[352678651,1739232642735,-500.0,0.00010958,2]
[352678652,1739232642746,-500.0,0.00010958,2]
[352678653,1739232642756,-500.0,0.00010958,2]
[352678654,1739232642767,-1228.32,0.00010958,2]
[352678655,1739232642776,-1770.39,0.00010958,2]
[352678656,1739232642786,-500.0,0.00010958,2]
[352678657,1739232642797,-1435.59,0.00010958,2]
[352678658,1739232642812,-500.0,0.00010958,2]
[352678659,1739232642822,-500.0,0.00010958,2]
[352678660,1739232642831,-500.0,0.00010958,2]
[352678661,1739232642841,-579.03,0.00010958,2]
[352678662,1739232642850,-2359.37,0.00010958,2]
[352678663,1739232642860,-1168.69,0.00010958,2]
[352678664,1739232642869,-386.9421152,0.00010958,2]
[352678665,1739232642879,-150.0,0.00010959,2]
[352678666,1739232642889,-1191.28631018,0.0001097,2]
[352678667,1739232642899,-1710.03214482,0.0001097,2]
[352678668,1739232642909,-783.3604815,0.0001097,2]
[352678669,1739232642920,-501.65481877,0.00010973,2]
[352678671,1739232642930,-211.68215277,0.00010973,2]
[352678672,1739232642940,-904.37,0.00010989,2]
[352678674,1739232642949,-518.87,0.00010989,2]
[352678676,1739232642958,-903.26,0.00010989,2]
[352678677,1739232642967,-1334.69,0.00010989,2]
[352678679,1739232642977,-1505.11,0.00010989,2]
[352678681,1739232642986,-1229.99,0.00010989,2]
[352678682,1739232642997,-1168.68,0.00010989,2]
[352678684,1739232643007,-500.0,0.00010989,2]
[352678686,1739232643016,-1357.85,0.00010989,2]
[352678687,1739232643026,-1581.95,0.00010989,2]
[352678689,1739232643036,-673.10755957,0.0001099,2]
[352678691,1739232643046,-673.10755957,0.0001099,2]
[352678692,1739232643056,-1273.0,0.00010993,2]
[352678694,1739232643065,-2024.0,0.00010993,2]
[352678696,1739232643074,-638.0,0.00010993,2]
[352678698,1739232643084,-569.0,0.00010993,2]
[352678701,1739232643093,-203.217,0.00010993,2]
[352678704,1739232643104,-1827.0,0.00010993,2]
[352678706,1739232643113,-783.0,0.00010993,2]
[352678708,1739232643123,-2953.0,0.00010993,2]
[352678710,1739232643134,-907.0,0.00010993,2]
[352678712,1739232643143,-1265.0,0.00010993,2]
[352678713,1739232643152,-4025.0,0.00010993,2]
[352678714,1739232643162,-539.0,0.00010993,2]
[352678715,1739232643173,-300.0,0.00010999,2]
[352678717,1739232643182,-404.21477327,0.00010999,2]
[352678719,1739232643192,-500.0,0.00010999,2]
[352678720,1739232643201,-551.13,0.00010999,2]
[352678721,1739232643440,-500.0,0.00010999,2]
[352678722,1739232643450,-500.0,0.00010999,2]
[352678723,1739232643460,-500.0,0.00010999,2]
[352678724,1739232643471,-500.0,0.00010999,2]
[352678725,1739232643487,-500.0,0.00010999,2]
[352678726,1739232643507,-500.0,0.00010999,2]
[352678727,1739232643519,-500.0,0.00010999,2]
[352678728,1739232643530,-1554.5831788,0.00010999,2]
[352678729,1739232643540,-182.49039529,0.00010999,2]
[352678730,1739232643550,-300.0,0.00010999,2]
[352678731,1739232643559,-300.0,0.00010999,2]
[352678732,1739232643570,-300.0,0.00010999,2]
[352678733,1739232643580,-300.0,0.00010999,2]
[352678735,1739232643590,-300.0,0.00010999,2]
[352678736,1739232643600,-300.0,0.00010999,2]
[352678737,1739232643610,-300.0,0.00010999,2]
[352678738,1739232643620,-260.89403752,0.00010999,2]
[352678739,1739232643629,-1890.0,0.00011,2]
[352678740,1739232643639,-1334037.5371022,0.00011,2]
[352678741,1739232643670,-6018.81893899,0.00011,2]
[352678742,1739232643681,-17417.96625061,0.00011,2]
[352678743,1739232643691,-17170.5,0.00011,2]
[352678744,1739232643703,-1914.75277448,0.00011,2]
[352678745,1739232643716,-134395.61348474,0.00011,2]
[352678746,1739232643730,-409.4664,0.00011,2]
[352678747,1739232643742,-4710.59138291,0.00011,2]
[352678748,1739232643754,-10568.7378646,0.00011,2]
[352678749,1739232644236,-5548.8,0.00011,2]
[352678750,1739232644249,-14000.0,0.00011,2]
[352678751,1739232644260,-505.9143036,0.00011,2]
[352678752,1739232644279,-853.08125,0.00011,2]
[352678753,1739232644291,-966.57757229,0.00011,2]
[352678754,1739232644303,-960.0,0.00011,2]
[352678755,1739232644315,-606.6,0.00011,2]
[352678756,1739232644326,-1006.34,0.00011,2]
[352678757,1739232644345,-2588.79942019,0.00011,2]
[352678758,1739232644737,-3903.2938132,0.00011,2]
[352678759,1739232644822,-682.4328602,0.00011,2]
[352678760,1739232644833,-450.86101724,0.00011,2]
[352678761,1739232644844,-1953.80552984,0.00011,2]
[352678762,1739232645183,-1706.26509923,0.00011,2]
[352678765,1739232646230,-266.5894,8.699e-05,2]
[352678766,1739232646241,-19.3606,0.00011,2]
[352678767,1739232646284,-5308.34692482,0.00011,2]
[352678769,1739232646497,-424.659,0.00010958,2]
[352678770,1739232871351,150.0,0.00019191,120]
[352678771,1739232882588,422.90477175,0.0002,120]
[352678772,1739232893990,500.0,0.0002,120]
[352678773,1739232907252,500.0,0.0002,120]
[352678774,1739232917220,500.0,0.0002,120]
[352678775,1739233051312,150.0,0.00019837,120]
[352678776,1739233110749,150.0,0.00019458,120]
[352678777,1739233171303,150.0,0.00019181,120]
[352678778,1739233259666,500.0,0.000199,120]
[352678779,1739233270659,288.858,0.0002,120]
[352678780,1739233279580,500.0,0.000199,120]
[352678781,1739233317595,500.0,0.000199,120]
[352678782,1739233329242,500.0,0.000199,120]
[352678783,1739233337398,500.0,0.000199,120]
[352678784,1739233410725,150.0,0.00019892,120]
[352678785,1739233470902,150.0,0.00018923,120]
[352678786,1739233481309,-1296.3847,8.699e-05,2]
[352678787,1739233481331,-12.6153,8.768e-05,2]
[352678788,1739233530718,150.0,0.00018908,120]
[352678789,1739233590765,150.0,0.00019966,120]
[352678790,1739233692959,155.9443845,0.0002,120]
[352678796,1739233770740,150.0,0.00019754,120]
[352678814,1739233831598,-716.62,8.219e-05,2]
[352678815,1739233831608,-150.0,8.494e-05,2]
[352678816,1739233831616,-150.0,8.699e-05,2]
[352678817,1739233831625,-2538.17369548,8.835e-05,2]
[352678818,1739233831635,-82743.3551,8.836e-05,2]
[352678819,1739233831644,-816.4166,8.836e-05,2]
[352678820,1739233831654,-3315.8458,8.836e-05,2]
[352678821,1739233831663,-1321.504,8.851e-05,2]
[352678822,1739233831673,-486.871,8.973e-05,2]
[352678823,1739233831682,-150.0,9.041e-05,2]
[352678824,1739233831691,-166.9,9.919e-05,2]
[352678825,1739233831701,-24219.79915509,0.0001,2]
[352678826,1739233831711,-251.3,0.00010077,2]
[352678827,1739233831720,-985.61,0.00010078,2]
[352678828,1739233831730,-1000.0,0.00010083,2]
[352678829,1739233831739,-249.19,0.00010137,2]
[352678830,1739233831748,-878.68,0.00010164,2]
[352678831,1739233831758,-158.15,0.00010168,2]
[352678832,1739233831767,-716.62,0.00010465,2]
[352678833,1739233831776,-153.0,0.00010493,2]
[352678834,1739233831786,-985.61,0.00010678,2]
[352678835,1739233831795,-9132.17574461,0.0001083,2]
[352678836,1739233831807,-2107.99439682,0.0001083,2]
[352678837,1739233831816,-1500.78,0.00010848,2]
[352678838,1739233831826,-982.89,0.00010848,2]
[352678839,1739233831835,-11240.17014143,0.00010851,2]
[352678840,1739233831845,-11240.17014143,0.00010852,2]
[352678841,1739233831853,-316.07497357,0.00010858,2]
[352678842,1739233831863,-11240.17014143,0.00010862,2]
[352678843,1739233831872,-27653.3527815,0.0001088,2]
[352678844,1739233831883,-486.87103,0.0001088,2]
[352678847,1739233837682,-11881.43437006,0.0001088,2]
[352678854,1739233837927,-4000.0,0.0001089,2]
[352678855,1739233837937,-169.55809943,0.00010899,2]
[352678856,1739233837947,-365.80072508,0.000109,2]
[352678857,1739233837956,-1052.88126572,0.000109,2]
[352678858,1739233837966,-496.23822955,0.000109,2]
[352678859,1739233837975,-194.62051886,0.000109,2]
[352678860,1739233837984,-314.07278446,0.000109,2]
[352678861,1739233837993,-375.90642474,0.000109,2]
[352678862,1739233838003,-500.0,0.00010932,2]
[352678863,1739233838012,-704.587984,0.00010958,2]
[352678864,1739233838021,-161.595445,0.00010958,2]
[352678865,1739233838030,-527.86021998,0.00010958,2]
[352678866,1739233838038,-500.0,0.00010958,2]
[352678867,1739233838047,-500.0,0.00010958,2]
[352678868,1739233838056,-500.0,0.00010958,2]
[352678869,1739233838066,-162.6,0.00010958,2]
[352678870,1739233838075,-688.10152,0.00010958,2]
[352678871,1739233838084,-500.0,0.00010958,2]
[352678872,1739233838094,-500.0,0.00010958,2]
[352678873,1739233838103,-500.0,0.00010958,2]
[352678874,1739233838112,-500.0,0.00010958,2]
[352678875,1739233838122,-552.08,0.00010958,2]
[352678876,1739233838132,-253.23,0.00010958,2]
[352678877,1739233838141,-500.0,0.00010958,2]
[352678878,1739233838150,-867.27,0.00010958,2]
[352678879,1739233838160,-500.0,0.00010958,2]
[352678880,1739233838169,-500.0,0.00010958,2]
[352678881,1739233838179,-500.0,0.00010958,2]
[352678882,1739233838188,-500.0,0.00010958,2]
[352678883,1739233838197,-500.0,0.00010958,2]
[352678884,1739233838206,-500.0,0.00010958,2]
[352678885,1739233838215,-500.0,0.00010958,2]
[352678886,1739233838224,-500.0,0.00010958,2]
[352678887,1739233838234,-500.0,0.00010958,2]
[352678888,1739233838243,-500.0,0.00010958,2]
[352678889,1739233838253,-500.0,0.00010958,2]
[352678890,1739233838263,-500.0,0.00010958,2]
[352678891,1739233838272,-500.0,0.00010958,2]
[352678892,1739233838281,-500.0,0.00010958,2]
[352678893,1739233838291,-500.0,0.00010958,2]
[352678894,1739233838300,-500.0,0.00010958,2]
[352678895,1739233838310,-500.0,0.00010958,2]
[352678896,1739233838319,-500.0,0.00010958,2]
[352678897,1739233838328,-577.79,0.00010958,2]
[352678898,1739233838337,-500.0,0.00010958,2]
[352678899,1739233838347,-500.0,0.00010958,2]
[352678900,1739233838356,-500.0,0.00010958,2]
[352678901,1739233838366,-500.0,0.00010958,2]
[352678902,1739233838375,-500.0,0.00010958,2]
[352678903,1739233838385,-500.0,0.00010958,2]
[352678904,1739233838395,-500.0,0.00010958,2]
[352678905,1739233838404,-500.0,0.00010958,2]
[352678906,1739233838414,-519.28,0.00010958,2]
[352678907,1739233838426,-500.0,0.00010958,2]
[352678908,1739233838436,-500.0,0.00010958,2]
[352678909,1739233838446,-506.64,0.00010958,2]
[352678910,1739233838456,-500.0,0.00010958,2]
[352678911,1739233838466,-500.0,0.00010958,2]
[352678912,1739233838476,-589.37,0.00010958,2]
[352678913,1739233838490,-569.71,0.00010958,2]
[352678914,1739233838502,-500.0,0.00010958,2]
[352678915,1739233838515,-500.0,0.00010958,2]
[352678916,1739233838526,-500.0,0.00010958,2]
[352678917,1739233838536,-500.0,0.00010958,2]
[352678918,1739233838546,-500.0,0.00010958,2]
[352678919,1739233838557,-622.06,0.00010958,2]
[352678920,1739233838574,-500.0,0.00010958,2]
[352678921,1739233838584,-500.0,0.00010958,2]
[352678922,1739233838595,-500.0,0.00010958,2]
[352678923,1739233838604,-500.0,0.00010958,2]
[352678924,1739233838614,-626.06464842,0.00010958,2]
[352678925,1739233838623,-500.0,0.00010958,2]
[352678926,1739233838633,-500.0,0.00010958,2]
[352678927,1739233838642,-506.18664595,0.00010958,2]
[352678928,1739233838652,-604.48,0.00010958,2]
[352678929,1739233838661,-500.0,0.00010958,2]
[352678930,1739233838671,-500.0,0.00010958,2]
[352678931,1739233838680,-500.0,0.00010958,2]
[352678932,1739233838690,-500.0,0.00010958,2]
[352678933,1739233838700,-657.67,0.00010958,2]
[352678934,1739233838709,-500.0,0.00010958,2]
[352678935,1739233838719,-500.0,0.00010958,2]
[352678936,1739233838729,-500.0,0.00010958,2]
[352678937,1739233838739,-500.0,0.00010958,2]
[352678938,1739233838748,-567.1,0.00010958,2]
[352678939,1739233838760,-500.0,0.00010958,2]
[352678940,1739233838770,-192.32,0.00010958,2]
[352678941,1739233838780,-690.79,0.00010958,2]
[352678942,1739233838790,-500.0,0.00010958,2]
[352678943,1739233838799,-500.0,0.00010958,2]
[352678944,1739233838809,-211.48,0.00010958,2]
[352678945,1739233838818,-367.00166747,0.00010958,2]
[352678946,1739233838828,-314.80075501,0.00010958,2]
[352678947,1739233838837,-305.75249343,0.00010958,2]
[352678948,1739233838846,-630.81,0.00010958,2]
[352678949,1739233838855,-335.27,0.00010958,2]
[352678950,1739233838864,-5000.0,0.00010958,2]
[352678951,1739233838874,-500.0,0.00010958,2]
[352678952,1739233838883,-500.0,0.00010958,2]
[352678953,1739233838892,-1269.49,0.00010958,2]
[352678954,1739233838901,-942.26,0.00010958,2]
[352678955,1739233838910,-174.9,0.00010958,2]
[352678956,1739233838920,-500.0,0.00010958,2]
[352678957,1739233838929,-1375.78,0.00010958,2]
[352678958,1739233838938,-639.88832423,0.00010958,2]
[352678959,1739233838948,-500.0,0.00010958,2]
[352678960,1739233838957,-837.42,0.00010958,2]
[352678961,1739233838966,-1117.67,0.00010958,2]
[352678962,1739233838976,-500.0,0.00010958,2]
[352678963,1739233838985,-500.0,0.00010958,2]
[352678964,1739233838995,-500.0,0.00010958,2]
[352678965,1739233839007,-545.46,0.00010958,2]
[352678966,1739233839016,-1034.13,0.00010958,2]
[352678967,1739233839027,-515.4,0.00010958,2]
[352678968,1739233839036,-500.0,0.00010958,2]
[352678969,1739233839047,-500.0,0.00010958,2]
[352678970,1739233839056,-808.87,0.00010958,2]
[352678971,1739233839066,-446.04837086,0.00010958,2]
[352678972,1739233839075,-500.0,0.00010958,2]
[352678973,1739233839084,-519.58,0.00010958,2]
[352678974,1739233839094,-610.29,0.00010958,2]
[352678975,1739233839106,-500.0,0.00010958,2]
[352678976,1739233839115,-500.0,0.00010958,2]
[352678977,1739233839124,-500.0,0.00010958,2]
[352678978,1739233839134,-571.49,0.00010958,2]
[352678979,1739233839143,-500.0,0.00010958,2]
[352678980,1739233839153,-397.26535283,0.00010958,2]
[352678981,1739233839162,-500.0,0.00010958,2]
[352678982,1739233839171,-704.86,0.00010958,2]
[352678983,1739233839181,-933.73,0.00010958,2]
[352678984,1739233839190,-650.89,0.00010958,2]
[352678985,1739233839200,-500.0,0.00010958,2]
[352678986,1739233839209,-500.0,0.00010958,2]
[352678987,1739233839219,-715.3,0.00010958,2]
[352678988,1739233839228,-612.93,0.00010958,2]
[352678989,1739233839238,-500.0,0.00010958,2]
[352678990,1739233839247,-500.0,0.00010958,2]
[352678991,1739233839258,-963.53,0.00010958,2]
[352678993,1739233839267,-765.65,0.00010958,2]
[352678994,1739233839276,-500.0,0.00010958,2]
[352678995,1739233839285,-500.0,0.00010958,2]
[352678996,1739233839294,-865.31,0.00010958,2]
[352678997,1739233839303,-500.0,0.00010958,2]
[352678998,1739233839312,-500.0,0.00010958,2]
[352678999,1739233839322,-511.68,0.00010958,2]
[352679000,1739233839331,-807.72,0.00010958,2]
[352679001,1739233839341,-655.11,0.00010958,2]
[352679002,1739233839351,-500.0,0.00010958,2]
[352679003,1739233839361,-500.0,0.00010958,2]
[352679004,1739233839370,-537.62,0.00010958,2]
[352679005,1739233839380,-500.0,0.00010958,2]
[352679006,1739233839389,-730.05,0.00010958,2]
[352679007,1739233839399,-331.30390987,0.00010958,2]
[352679008,1739233839409,-617.67,0.00010958,2]
[352679009,1739233839419,-1334.84,0.00010958,2]
[352679010,1739233839428,-500.0,0.00010958,2]
[352679011,1739233839438,-500.0,0.00010958,2]
[352679012,1739233839447,-697.22,0.00010958,2]
[352679013,1739233839457,-878.97,0.00010958,2]
[352679014,1739233839467,-637.64,0.00010958,2]
[352679015,1739233839476,-500.0,0.00010958,2]
[352679016,1739233839485,-500.0,0.00010958,2]
[352679017,1739233839498,-484.26,0.00010958,2]
[352679018,1739233839508,-1108.93,0.00010958,2]
[352679019,1739233839518,-500.0,0.00010958,2]
[352679020,1739233839527,-500.0,0.00010958,2]
[352679021,1739233839538,-621.56,0.00010958,2]
[352679022,1739233839548,-500.0,0.00010958,2]
[352679023,1739233839557,-745.49,0.00010958,2]
[352679024,1739233839568,-500.0,0.00010958,2]
[352679025,1739233839578,-500.0,0.00010958,2]
[352679026,1739233839589,-500.0,0.00010958,2]
[352679027,1739233839599,-529.76,0.00010958,2]
[352679028,1739233839608,-711.1,0.00010958,2]
[352679029,1739233839618,-500.0,0.00010958,2]
[352679030,1739233839629,-129.57465401,0.00010958,2]
[352679031,1739233839996,-370.42534599,0.00010958,2]
[352679032,1739233840006,-288.06766098,0.00010958,2]
[352679033,1739233840017,-453.98,0.00010958,2]
[352679034,1739233840027,-500.0,0.00010958,2]
[352679036,1739233840036,-788.44,0.00010958,2]
[352679038,1739233840046,-878.67,0.00010958,2]
[352679039,1739233840055,-813.29,0.00010958,2]
[352679040,1739233840064,-500.0,0.00010958,2]
[352679041,1739233840074,-500.0,0.00010958,2]
[352679042,1739233840084,-1075.68,0.00010958,2]
[352679044,1739233840093,-835.06,0.00010958,2]
[352679045,1739233840103,-500.0,0.00010958,2]
[352679046,1739233840113,-604.45,0.00010958,2]
[352679047,1739233840123,-524.55,0.00010958,2]
[352679048,1739233840133,-511.55,0.00010958,2]
[352679049,1739233840145,-380.96,0.00010958,2]
[352679050,1739233840155,-500.0,0.00010958,2]
[352679051,1739233840165,-487.33066668,0.00010958,2]
[352679052,1739233840223,-266.95933332,0.00010958,2]
[352679053,1739233840234,-500.0,0.00010958,2]
[352679054,1739233840243,-500.0,0.00010958,2]
[352679055,1739233840253,-500.0,0.00010958,2]
[352679056,1739233840263,-986.47,0.00010958,2]
[352679057,1739233840272,-837.29,0.00010958,2]
[352679058,1739233840282,-500.0,0.00010958,2]
[352679059,1739233840292,-500.0,0.00010958,2]
[352679060,1739233840301,-500.0,0.00010958,2]
[352679061,1739233840310,-500.0,0.00010958,2]
[352679062,1739233840320,-500.0,0.00010958,2]
[352679063,1739233840330,-672.57,0.00010958,2]
[352679064,1739233840340,-500.0,0.00010958,2]
[352679065,1739233840349,-583.91,0.00010958,2]
[352679066,1739233840359,-500.0,0.00010958,2]
[352679067,1739233840369,-608.2,0.00010958,2]
[352679068,1739233840378,-723.55,0.00010958,2]
[352679069,1739233840388,-500.0,0.00010958,2]